bitfinex/quotes_SOLUSD_20250621
["timestamp","ask_amount","ask_price","bid_price","bid_amount"]
[1750532563437,148.0,137.81,137.77,7.25831879]
[1750532563620,16.09335166,137.79,137.77,7.25831879]
[1750532563826,15.37335166,137.78,137.77,7.25831879]
[1750532564034,0.72,137.77,137.76,7.18]
[1750532564236,0.74,137.76,137.72,47.04]
[1750532564541,0.74,137.72,137.71,7.18]
[1750532564747,16.11335166,137.72,137.71,7.18]
[1750532565035,0.74,137.72,137.71,7.18]
[1750532565335,0.74,137.78,137.71,29.81498843]
[1750532565546,15.37335166,137.76,137.72,15.37335166]
[1750532566084,15.37335166,137.77,137.73,15.37335166]
[1750532566383,15.37335166,137.78,137.74,16.99625166]
[1750532566563,190.11335166,137.79,137.74,16.99625166]
[1750532566756,190.11335166,137.79,137.75,7.25952813]
[1750532567184,15.37335166,137.78,137.75,7.25952813]
[1750532567891,148.0,137.79,137.75,40.78170011]
[1750532568190,148.0,137.79,137.77,15.37335166]
[1750532568482,16.11335166,137.82,137.78,7.16]
[1750532568689,16.11335166,137.82,137.78,22.53335166]
[1750532568860,16.11335166,137.82,137.79,7.25742071]
[1750532569874,16.11335166,137.82,137.79,25.40097249]
[1750532570070,26.74,137.84,137.79,25.40097249]
[1750532570291,15.37335166,137.83,137.79,40.77432415]
[1750532570810,15.37335166,137.83,137.79,25.40097249]
[1750532570986,0.74,137.79,137.78,14.41777256]
[1750532571193,16.11335166,137.79,137.78,14.41777256]
[1750532572086,15.37335166,137.8,137.78,14.41777256]
[1750532572286,174.0,137.82,137.78,14.41777256]
[1750532572287,15.37335166,137.81,137.78,14.41777256]
[1750532572604,16.11335166,137.8,137.78,14.41777256]
[1750532572812,15.37335166,137.81,137.78,14.41777256]
[1750532573180,148.0,137.82,137.78,47.93599285]
[1750532573530,148.0,137.82,137.79,15.37335166]
[1750532573708,163.37335166,137.82,137.78,14.41777256]
[1750532573912,16.11335166,137.81,137.78,14.41777256]
[1750532574482,16.11335166,137.8,137.78,14.41777256]
[1750532575200,0.74,137.8,137.78,14.41777256]
[1750532576793,16.11335166,137.8,137.78,14.41777256]
[1750532577708,164.11335166,137.82,137.78,29.79112422]
[1750532578005,164.11335166,137.82,137.78,14.41777256]
[1750532578207,15.37335166,137.81,137.78,14.41777256]
[1750532578796,163.37335166,137.82,137.78,47.93599285]
[1750532579914,148.0,137.82,137.8,15.37335166]
[1750532581102,163.37335166,137.82,137.78,32.56264119]
[1750532581400,163.37335166,137.82,137.78,47.93599285]
[1750532582217,16.11335166,137.81,137.78,32.56264119]
[1750532582389,148.0,137.82,137.78,32.56264119]
[1750532582390,163.37335166,137.82,137.78,32.56264119]
[1750532582596,164.11335166,137.82,137.78,32.56264119]
[1750532585320,164.11335166,137.82,137.78,47.93599285]
[1750532585531,0.74,137.8,137.78,14.41777256]
[1750532586105,16.11335166,137.79,137.78,7.16]
[1750532587799,148.0,137.78,137.74,1.6229]
[1750532588003,16.11335166,137.79,137.73,7.16]
[1750532588004,0.74,137.74,137.73,7.16]
[1750532588310,148.0,137.77,137.73,29.79390081]
[1750532588517,16.11335166,137.79,137.75,15.37335166]
[1750532588722,0.74,137.77,137.73,47.94535655]
[1750532589119,0.74,137.77,137.74,15.37335166]
[1750532589321,15.37335166,137.78,137.75,7.25952813]
[1750532589506,16.11335166,137.79,137.75,22.63287979]
[1750532590312,0.74,137.77,137.75,7.25952813]
[1750532590517,0.74,137.75,137.74,7.25991726]
[1750532590796,16.11335166,137.75,137.74,7.25991726]
[1750532591041,0.74,137.74,137.72,7.26110949]
[1750532591210,16.11335166,137.74,137.72,7.26110949]
[1750532591405,15.37335166,137.73,137.72,7.26110949]
[1750532591935,15.37335166,137.73,137.71,15.98936345]
[1750532592105,16.11335166,137.72,137.71,14.42146345]
[1750532593316,16.11335166,137.72,137.71,7.16]
[1750532594725,16.11335166,137.72,137.71,14.42163677]
[1750532594916,16.11335166,137.72,137.71,7.16]
[1750532597036,16.11335166,137.72,137.71,14.42163677]
[1750532599107,0.74,137.72,137.71,14.42163677]
[1750532599307,16.11335166,137.72,137.71,14.42163677]
[1750532600911,148.0,137.73,137.71,29.79498843]
[1750532601117,148.0,137.73,137.72,15.37335166]
[1750532601317,163.37335166,137.73,137.71,14.42163677]
[1750532602331,148.0,137.73,137.71,14.42163677]
[1750532602922,148.0,137.73,137.72,15.37335166]
[1750532604428,148.0,137.73,137.72,7.26110949]
[1750532604945,148.0,137.73,137.72,22.63446115]
[1750532605118,148.0,137.79,137.72,40.78723489]
[1750532605319,15.37335166,137.77,137.73,15.37335166]
[1750532605544,15.37335166,137.77,137.72,40.78723489]
[1750532605545,16.08335166,137.77,137.72,40.78723489]
[1750532606054,0.71,137.75,137.72,25.41388323]
[1750532606358,0.71,137.73,137.72,7.26110949]
[1750532606522,16.08335166,137.73,137.72,7.26110949]
[1750532606919,0.71,137.72,137.71,14.42159516]
[1750532607147,164.08335166,137.72,137.71,7.16]
[1750532607548,16.08335166,137.72,137.71,7.16]
[1750532609140,16.08335166,137.72,137.68,7.2631569]
[1750532609337,16.08335166,137.69,137.68,7.2631569]
[1750532609655,15.37335166,137.7,137.68,7.2631569]
[1750532609865,148.0,137.71,137.68,25.42120454]
[1750532610564,163.37335166,137.71,137.68,25.42120454]
[1750532610863,164.08335166,137.71,137.68,25.42120454]
[1750532611367,16.08335166,137.7,137.68,7.2631569]
[1750532611869,16.08335166,137.69,137.68,7.2631569]
[1750532612530,16.08335166,137.69,137.67,7.26374664]
[1750532613762,148.0,137.71,137.67,40.7964649]
[1750532614465,148.0,137.71,137.68,15.37335166]
[1750532614646,148.0,137.71,137.69,7.26269155]
[1750532615650,0.71,137.7,137.69,7.26269155]
[1750532616050,163.37335166,137.71,137.69,7.26269155]
[1750532616260,163.37335166,137.7,137.66,7.26405246]
[1750532616451,0.71,137.66,137.65,7.14]
[1750532616874,148.0,137.68,137.65,14.40480203]
[1750532617180,163.37335166,137.68,137.65,14.40480203]
[1750532617545,0.71,137.66,137.65,7.14]
[1750532617768,16.08335166,137.66,137.65,7.14]
[1750532617981,148.0,137.68,137.65,29.77815369]
[1750532618280,148.71,137.68,137.65,32.56680711]
[1750532618788,148.71,137.68,137.65,47.94015877]
[1750532619077,148.0,137.68,137.65,47.94015877]
[1750532619573,148.0,137.68,137.66,15.37335166]
[1750532619772,148.0,137.68,137.65,47.94015877]
[1750532620774,148.71,137.68,137.65,32.56680711]
[1750532620978,148.71,137.68,137.65,14.40480203]
[1750532621186,16.08335166,137.67,137.65,7.26480203]
[1750532621350,15.37335166,137.67,137.64,14.40524644]
[1750532621959,0.71,137.66,137.64,14.40524644]
[1750532622376,0.71,137.65,137.64,14.40524644]
[1750532622585,15.37335166,137.66,137.64,14.40524644]
[1750532622990,16.08335166,137.66,137.64,14.40524644]
[1750532623192,0.71,137.66,137.64,14.40524644]
[1750532623368,16.08335166,137.66,137.64,14.40524644]
[1750532624089,0.71,137.66,137.64,14.40524644]
[1750532624388,16.05335166,137.67,137.64,14.40524644]
[1750532624584,0.68,137.66,137.64,14.40524644]
[1750532624895,0.68,137.65,137.64,14.40524644]
[1750532625099,164.05335166,137.65,137.64,7.14]
[1750532625303,164.05335166,137.65,137.62,7.26602888]
[1750532625304,148.68,137.64,137.59,14.40760159]
[1750532625498,15.37335166,137.62,137.59,14.40760159]
[1750532626196,16.05335166,137.62,137.59,14.40760159]
[1750532626695,0.68,137.62,137.59,14.40760159]
[1750532626992,0.68,137.66,137.61,15.37335166]
[1750532627166,0.68,137.66,137.63,15.37335166]
[1750532627958,174.0,137.67,137.64,15.37335166]
[1750532628166,174.0,137.67,137.65,15.37335166]
[1750532628167,174.68,137.67,137.65,15.37335166]
[1750532628367,148.68,137.67,137.65,15.37335166]
[1750532628866,148.68,137.67,137.65,22.63775466]
[1750532629094,148.0,137.67,137.65,22.63775466]
[1750532629664,148.0,137.67,137.65,7.264403]
[1750532629868,148.68,137.67,137.65,7.264403]
[1750532630367,0.68,137.66,137.65,7.264403]
[1750532630891,0.68,137.66,137.64,15.37335166]
[1750532631100,148.0,137.67,137.65,15.37335166]
[1750532632797,148.0,137.67,137.66,7.26427429]
[1750532633678,148.0,137.67,137.66,22.63762595]
[1750532634108,148.0,137.71,137.66,40.79831169]
[1750532634397,148.0,137.71,137.69,15.37335166]
[1750532635103,148.0,137.71,137.7,7.26216412]
[1750532638687,38.28618963,137.74,137.7,40.79092609]
[1750532638881,38.28618963,137.74,137.71,15.37335166]
[1750532639087,38.28618963,137.74,137.71,22.49335166]
[1750532639779,38.28618963,137.74,137.71,7.12]
[1750532640309,38.28618963,137.74,137.72,7.26110949]
[1750532640679,15.37335166,137.73,137.71,7.12]
[1750532640895,0.68,137.72,137.71,7.12]
[1750532641209,148.0,137.71,137.67,24.00385166]
[1750532641412,0.68,137.7,137.67,24.00385166]
[1750532641773,163.37335166,137.71,137.67,8.6305]
[1750532641979,0.68,137.68,137.67,14.38367446]
[1750532642194,16.05335166,137.68,137.67,7.12]
[1750532643275,0.68,137.68,137.67,7.12]
[1750532643483,26.68,137.68,137.67,14.38374664]
[1750532644982,26.0,137.68,137.67,14.38374664]
[1750532645194,15.37335166,137.7,137.67,14.38374664]
[1750532645506,16.05335166,137.71,137.67,29.7570983]
[1750532646216,11.60618963,137.74,137.7,17.03655166]
[1750532646504,163.37335166,137.76,137.73,15.37335166]
[1750532646505,148.0,137.76,137.73,15.37335166]
[1750532646703,148.0,137.76,137.73,7.12]
[1750532646903,148.0,137.76,137.74,7.26005517]
[1750532647292,164.05335166,137.81,137.75,15.37335166]
[1750532647501,164.05335166,137.81,137.78,15.37335166]
[1750532647502,0.68,137.81,137.78,15.37335166]
[1750532647813,15.37335166,137.84,137.8,15.37335166]
[1750532648004,0.68,137.84,137.81,15.37335166]
[1750532648388,12.05747485,137.85,137.83,15.37335166]
[1750532648644,154.0582,137.92,137.79,7.12]
[1750532648645,15.37335166,137.86,137.82,15.37335166]
[1750532648812,5.31948909,137.91,137.84,15.37335166]
[1750532648813,15.37335166,137.88,137.84,15.37335166]
[1750532648986,15.37335166,137.85,137.8,7.25689404]
[1750532649182,0.68,137.83,137.8,7.25689404]
[1750532649486,0.68,137.81,137.8,7.25689404]
[1750532649792,0.68,137.8,137.79,7.12]
[1750532649992,16.05335166,137.8,137.79,7.12]
[1750532650814,0.68,137.8,137.79,7.12]
[1750532651590,0.68,137.83,137.79,7.12]
[1750532651786,15.37335166,137.81,137.79,7.12]
[1750532652097,16.05335166,137.81,137.79,7.12]
[1750532652795,0.68,137.8,137.79,7.12]
[1750532653107,16.05335166,137.8,137.79,7.12]
[1750532655395,7.93689404,137.8,137.79,7.12]
[1750532655717,23.3102457,137.8,137.79,7.12]
[1750532655921,26.68,137.8,137.79,7.12]
[1750532656094,42.05335166,137.8,137.79,7.12]
[1750532656291,49.3102457,137.8,137.79,7.12]
[1750532656485,49.3102457,137.8,137.72,13.58264897]
[1750532656486,49.3102457,137.8,137.72,21.69525166]
[1750532656835,16.05335166,137.76,137.74,7.12]
[1750532657900,23.31240738,137.76,137.74,7.12]
[1750532658202,0.68,137.76,137.74,7.12]
[1750532658419,15.37335166,137.76,137.74,7.12]
[1750532658813,148.68,137.79,137.74,7.12]
[1750532659031,15.37335166,137.77,137.74,7.12]
[1750532659330,16.05335166,137.77,137.74,7.12]
[1750532659686,148.0,137.78,137.74,7.12]
[1750532659896,148.0,137.78,137.74,14.37983947]
[1750532660302,148.0,137.78,137.74,29.75319113]
[1750532660732,148.0,137.78,137.75,15.37335166]
[1750532661030,148.0,137.78,137.74,22.49335166]
[1750532661031,170.63135986,137.78,137.74,22.49335166]
[1750532661229,170.63134008,137.78,137.74,22.49335166]
[1750532661414,16.05335166,137.77,137.74,7.12]
[1750532661614,163.37335166,137.78,137.74,22.49335166]
[1750532661825,170.63140792,137.78,137.74,22.49335166]
[1750532662020,148.0,137.78,137.74,29.75336]
[1750532662328,16.05335166,137.75,137.74,7.12]
[1750532662828,26.0,137.72,137.69,7.1]
[1750532663024,16.05335166,137.71,137.69,7.1]
[1750532663337,15.37335166,137.7,137.66,1.6071]
[1750532663517,16.05335166,137.7,137.67,7.1]
[1750532664906,148.68,137.74,137.67,14.36373579]
[1750532665108,41.37335166,137.73,137.68,15.37335166]
[1750532665343,15.37335166,137.72,137.67,14.36373579]
[1750532665638,16.05335166,137.71,137.67,14.36373579]
[1750532665802,15.37335166,137.71,137.67,14.36373579]
[1750532666007,16.05335166,137.7,137.67,14.36373579]
[1750532666742,0.68,137.7,137.67,14.36373579]
[1750532668819,26.0,137.73,137.67,47.89645405]
[1750532669016,41.37335166,137.73,137.69,15.37335166]
[1750532669227,148.0,137.72,137.69,15.37335166]
[1750532670527,148.0,137.72,137.68,15.37335166]
[1750532670734,16.05335166,137.71,137.67,32.52310239]
[1750532671040,16.05335166,137.71,137.67,47.89645405]
[1750532672047,15.37335166,137.7,137.67,14.36373579]
[1750532672357,16.05335166,137.69,137.67,14.36373579]
[1750532672541,15.37335166,137.68,137.67,14.36373579]
[1750532672836,16.05335166,137.69,137.67,14.36373579]
[1750532673007,0.68,137.69,137.67,14.36373579]
[1750532673214,16.05335166,137.68,137.67,7.1]
[1750532673702,148.68,137.71,137.67,14.36374664]
[1750532673926,148.68,137.71,137.67,29.7370983]
[1750532674144,148.0,137.71,137.67,29.7370983]
[1750532674634,0.68,137.7,137.67,32.52311324]
[1750532675038,16.05335166,137.7,137.67,32.52311324]
[1750532675343,16.05335166,137.7,137.67,14.36374664]
[1750532675522,16.05335166,137.69,137.67,14.36374664]
[1750532676167,15.37335166,137.68,137.67,14.36374664]
[1750532676322,16.05335166,137.69,137.67,14.36374664]
[1750532676519,0.68,137.69,137.67,14.36374664]
[1750532676750,148.0,137.7,137.67,29.7370983]
[1750532677046,148.0,137.7,137.67,47.8964649]
[1750532678525,148.0,137.7,137.68,15.37335166]
[1750532678716,26.0,137.75,137.69,35.64060052]
[1750532678717,16.05335166,137.75,137.69,35.64060052]
[1750532678922,16.05335166,137.75,137.71,15.37335166]
[1750532679521,16.05335166,137.75,137.7,15.37335166]
[1750532679733,0.68,137.75,137.7,18.64964886]
[1750532680022,164.05335166,137.76,137.72,15.37335166]
[1750532680624,164.05335166,137.76,137.73,7.26058229]
[1750532681444,148.68,137.76,137.73,7.26058229]
[1750532681638,164.05335166,137.76,137.73,7.26058229]
[1750532682865,0.68,137.74,137.73,7.26058229]
[1750532683073,15.37335166,137.74,137.7,7.26216412]
[1750532683357,16.05335166,137.72,137.7,7.26216412]
[1750532684353,16.09335166,137.72,137.7,7.26216412]
[1750532685362,16.09335166,137.71,137.7,7.26216412]
[1750532686066,0.72,137.71,137.7,7.26216412]
[1750532686369,16.09335166,137.74,137.7,22.63551578]
[1750532686663,16.09335166,137.74,137.7,40.79092609]
[1750532686848,16.09335166,137.73,137.7,25.41757443]
[1750532688058,174.0,137.75,137.7,40.79092609]
[1750532688252,174.0,137.75,137.71,15.37335166]
[1750532688846,174.0,137.75,137.73,7.26058229]
[1750532689046,190.09335166,137.75,137.73,7.26058229]
[1750532689955,174.72,137.75,137.73,7.26058229]
[1750532691175,174.72,137.75,137.72,7.26110949]
[1750532691738,174.0,137.75,137.72,25.41388323]
[1750532692059,174.0,137.75,137.72,40.78723489]
[1750532692567,190.09335166,137.75,137.72,25.41388323]
[1750532693159,148.0,137.75,137.72,40.78723489]
[1750532693468,148.0,137.75,137.72,42.30693489]
[1750532694052,148.0,137.75,137.73,15.37335166]
[1750532694865,148.0,137.75,137.73,22.45335166]
[1750532695237,148.0,137.75,137.74,7.26005517]
[1750532696158,148.72,137.75,137.74,7.26005517]
[1750532696547,164.09335166,137.75,137.74,7.26005517]
[1750532696756,148.0,137.75,137.74,7.26005517]
[1750532697874,0.72,137.78,137.74,40.78354477]
[1750532698058,0.72,137.78,137.75,15.37335166]
[1750532698366,163.37335166,137.79,137.75,15.37335166]
[1750532698367,148.0,137.79,137.75,15.37335166]
[1750532698572,148.0,137.79,137.76,15.37335166]
[1750532698773,0.72,137.81,137.78,15.37335166]
[1750532698953,16.09335166,137.83,137.79,15.37335166]
[1750532699150,16.09335166,137.82,137.78,15.37335166]
[1750532699571,16.09335166,137.82,137.79,7.25742071]
[1750532700257,15.37335166,137.81,137.79,7.25742071]
[1750532700462,0.72,137.79,137.77,7.25847426]
[1750532700656,163.37335166,137.78,137.71,13.3321]
[1750532700866,16.09335166,137.75,137.71,13.3321]
[1750532701085,16.09335166,137.74,137.71,7.08]
[1750532701380,0.72,137.72,137.71,7.08]
[1750532701586,16.09335166,137.72,137.71,7.08]
[1750532701955,0.72,137.72,137.71,7.08]
[1750532702156,15.37335166,137.73,137.71,7.08]
[1750532703048,16.09335166,137.74,137.71,7.08]
[1750532703279,15.37335166,137.76,137.71,22.45335166]
[1750532703456,148.0,137.77,137.75,15.37335166]
[1750532703653,16.09335166,137.81,137.76,22.63235282]
[1750532703853,15.37335166,137.81,137.77,7.08]
[1750532704157,15.37335166,137.8,137.77,7.08]
[1750532704358,16.09335166,137.8,137.77,7.08]
[1750532704558,0.72,137.8,137.77,7.08]
[1750532705060,16.09335166,137.8,137.77,7.08]
[1750532705265,16.09335166,137.79,137.77,7.08]
[1750532705472,15.37335166,137.8,137.77,7.08]
[1750532705674,16.09335166,137.8,137.78,7.25794745]
[1750532705985,0.72,137.79,137.78,7.25794745]
[1750532706856,0.72,137.79,137.77,14.33828479]
[1750532706857,15.37335166,137.79,137.77,14.33828479]
[1750532707083,0.72,137.77,137.72,7.08]
[1750532707381,15.37335166,137.75,137.73,7.26040372]
[1750532707689,16.09335166,137.75,137.73,7.26040372]
[1750532709788,0.72,137.73,137.72,14.34095662]
[1750532709961,16.09335166,137.73,137.72,7.08]
[1750532710471,16.09335166,137.73,137.72,14.34110949]
[1750532710680,148.0,137.78,137.72,29.71446115]
[1750532710983,16.09335166,137.77,137.73,15.37335166]
[1750532711190,16.09335166,137.77,137.72,47.86723489]
[1750532711395,0.72,137.77,137.73,15.37335166]
[1750532711567,0.72,137.77,137.74,7.26005517]
[1750532711900,0.72,137.77,137.74,25.41019311]
[1750532713294,0.72,137.77,137.74,40.78354477]
[1750532713676,0.72,137.77,137.74,25.41019311]
[1750532713874,148.0,137.78,137.74,42.32224477]
[1750532714067,148.0,137.78,137.75,15.37335166]
[1750532714266,148.0,137.78,137.76,15.37335166]
[1750532714611,15.37335166,137.78,137.74,26.94889311]
[1750532714764,16.06335166,137.78,137.74,26.94889311]
[1750532715106,0.69,137.78,137.75,15.37335166]
[1750532715461,0.69,137.78,137.76,7.25900116]
[1750532715873,16.06335166,137.79,137.76,7.25900116]
[1750532717204,41.37335166,137.8,137.76,40.77985572]
[1750532717416,16.06335166,137.82,137.76,25.40650406]
[1750532717707,0.69,137.81,137.77,15.37335166]
[1750532717885,0.69,137.81,137.78,7.08]
[1750532718397,16.06335166,137.81,137.78,7.08]
[1750532718772,41.37335166,137.82,137.79,7.25742071]
[1750532719091,30.99925753,137.83,137.79,22.63077237]
[1750532719276,7.25285614,137.88,137.81,15.37335166]
[1750532719277,0.69,137.87,137.81,15.37335166]
[1750532719468,16.06335166,137.86,137.81,15.37335166]
[1750532719780,26.69,137.86,137.81,15.37335166]
[1750532720094,42.06335166,137.86,137.81,15.37335166]
[1750532720601,42.06335166,137.86,137.82,7.25584095]
[1750532721593,0.69,137.86,137.82,25.39544332]
[1750532721801,163.37335166,137.88,137.84,15.37335166]
[1750532721999,164.06335166,137.88,137.84,22.41335166]
[1750532722499,164.06335166,137.88,137.85,7.25426187]
[1750532722872,0.69,137.85,137.84,14.29459836]
[1750532723395,15.37335166,137.86,137.84,14.29459836]
[1750532723569,15.37335166,137.87,137.84,14.29459836]
[1750532723767,16.06335166,137.87,137.84,14.29459836]
[1750532723975,0.69,137.86,137.84,14.29459836]
[1750532724499,15.37335166,137.87,137.84,14.29459836]
[1750532724801,16.06335166,137.87,137.84,14.29459836]
[1750532725006,0.69,137.87,137.84,14.29459836]
[1750532725386,16.06335166,137.87,137.84,14.29459836]
[1750532726175,16.06335166,137.87,137.84,32.43156876]
[1750532726383,0.69,137.87,137.84,32.43156876]
[1750532727104,163.37335166,137.88,137.84,32.43156876]
[1750532727274,148.0,137.88,137.84,47.80492042]
[1750532727470,148.0,137.92,137.88,1.6322]
[1750532727694,148.0,137.92,137.91,15.37335166]
[1750532727883,15.37335166,137.96,137.91,22.41335166]
[1750532728085,0.69,137.98,137.94,15.37335166]
[1750532728286,0.69,137.98,137.95,7.24900326]
[1750532728287,16.06335166,137.98,137.95,7.24900326]
[1750532728490,0.69,137.98,137.95,7.24900326]
[1750532728678,16.06335166,137.96,137.95,7.24900326]
[1750532728880,0.69,137.96,137.95,7.24900326]
[1750532729504,16.06335166,137.96,137.95,7.24900326]
[1750532729713,0.69,137.95,137.9,7.25163161]
[1750532730006,41.37335166,137.96,137.92,15.37335166]
[1750532730191,0.69,137.97,137.94,25.37335073]
[1750532730371,0.69,137.97,137.94,40.74670239]
[1750532730575,15.37335166,137.96,137.94,25.37335073]
[1750532731073,16.06335166,137.95,137.94,7.24952878]
[1750532732207,16.06335166,137.95,137.92,7.25058004]
[1750532732781,15.37335166,137.96,137.92,40.75038181]
[1750532733805,15.37335166,137.97,137.93,34.02300052]
[1750532734111,41.37335166,137.98,137.94,15.37335166]
[1750532734292,42.06335166,137.98,137.95,7.24900326]
[1750532734612,26.69,137.98,137.95,7.24900326]
[1750532734791,42.06335166,137.98,137.95,7.24900326]
[1750532734998,26.69,137.98,137.95,7.24900326]
[1750532735310,42.06335166,137.98,137.95,25.37151141]
[1750532736191,148.0,137.99,137.95,26.97741141]
[1750532736386,15.37335166,137.97,137.94,7.24932692]
[1750532736597,16.06335166,137.97,137.94,7.24932692]
[1750532737804,15.37335166,137.98,137.94,40.74650053]
[1750532738012,16.06335166,137.98,137.94,40.74650053]
[1750532738206,16.06335166,137.98,137.93,15.37335166]
[1750532738393,15.37335166,137.97,137.93,34.02300052]
[1750532738739,189.37335166,137.99,137.95,34.02300052]
[1750532738916,7.24444455,138.04,137.95,34.02300052]
[1750532738917,148.0,138.04,137.97,15.37335166]
[1750532739096,148.0,138.04,137.98,22.41335166]
[1750532739097,15.37335166,138.02,137.98,22.41335166]
[1750532739297,16.06335166,138.02,137.98,7.04]
[1750532739620,15.37335166,138.01,137.98,7.04]
[1750532739817,0.69,138.02,137.98,22.41335166]
[1750532740116,16.06335166,138.02,137.98,22.41335166]
[1750532740504,16.06335166,138.02,137.99,7.24690194]
[1750532741505,26.0,138.03,137.99,25.36415681]
[1750532741698,41.37335166,138.03,137.99,25.36415681]
[1750532741912,26.69,138.03,137.99,25.36415681]
[1750532742111,42.06335166,138.03,137.99,25.36415681]
[1750532742292,26.69,138.03,137.99,40.73750847]
[1750532742618,42.06335166,138.03,137.99,40.73750847]
[1750532742797,16.06335166,138.03,137.99,40.73750847]
[1750532743120,16.06335166,138.03,137.99,25.36415681]
[1750532743896,15.37335166,138.0,137.95,1.5082]
[1750532744091,15.37335166,138.0,137.95,24.13035305]
[1750532744416,15.37335166,137.99,137.95,24.13035305]
[1750532744612,26.68,138.0,137.95,24.13035305]
[1750532744813,42.05335166,138.0,137.95,24.13035305]
[1750532745217,42.05335166,138.0,137.96,15.37335166]
[1750532745417,26.0,138.0,137.96,15.37335166]
[1750532745617,41.37335166,138.0,137.96,15.37335166]
[1750532745820,26.0,138.0,137.96,15.37335166]
[1750532746006,41.37335166,138.0,137.96,15.37335166]
[1750532746702,41.37335166,138.0,137.97,25.36783358]
[1750532747294,26.0,138.0,137.97,25.36783358]
[1750532747499,41.37335166,138.0,137.97,25.36783358]
[1750532748528,15.37335166,137.99,137.97,7.24795245]
[1750532748701,16.05335166,137.98,137.97,7.24795245]
[1750532748905,15.37335166,137.99,137.97,7.24795245]
[1750532749506,16.05335166,137.99,137.97,7.24795245]
[1750532750410,0.68,137.97,137.94,25.37210539]
[1750532750604,16.05335166,137.97,137.94,25.37210539]
[1750532750825,16.05335166,137.97,137.94,7.24952878]
[1750532751026,16.05335166,137.96,137.94,7.24952878]
[1750532751837,15.37335166,137.95,137.93,14.28986022]
[1750532752033,0.68,137.93,137.9,7.25163161]
[1750532752257,15.37335166,137.96,137.92,15.37335166]
[1750532752536,0.68,137.98,137.9,25.38071065]
[1750532752537,16.05335166,137.98,137.94,18.64964886]
[1750532752710,16.05335166,137.98,137.94,7.02]
[1750532753034,16.05335166,137.98,137.94,22.39335166]
[1750532753633,15.37335166,138.0,137.96,15.37335166]
[1750532753844,0.68,138.0,137.97,15.37335166]
[1750532754007,15.37335166,138.02,137.97,15.37335166]
[1750532754211,42.05335166,138.02,137.97,15.37335166]
[1750532754523,42.05335166,138.02,137.98,25.36599506]
[1750532754732,15.37335166,138.04,137.99,15.37335166]
[1750532754934,15.37335166,138.03,137.98,40.73934672]
[1750532755114,0.68,138.02,137.98,40.73934672]
[1750532756019,0.68,138.02,137.98,25.36599506]
[1750532756223,0.68,138.02,137.98,40.73934672]
[1750532756416,26.0,138.03,137.99,34.02300052]
[1750532756638,15.37335166,138.04,138.01,7.24585174]
[1750532756846,16.05335166,138.04,138.01,7.24585174]
[1750532757256,16.05335166,138.04,138.01,25.36048111]
[1750532757940,148.0,138.09,138.01,25.36048111]
[1750532757941,16.05335166,138.08,138.02,20.15784886]
[1750532758250,16.05335166,138.06,138.02,35.53120052]
[1750532758619,16.05335166,138.06,138.03,25.35680648]
[1750532759022,0.68,138.06,138.03,25.35680648]
[1750532759224,15.37335166,138.07,138.03,25.35680648]
[1750532759537,15.37335166,138.11,138.06,15.37335166]
[1750532759747,15.37335166,138.11,138.04,18.64964886]
[1750532759748,16.05335166,138.13,138.08,15.37335166]
[1750532759926,0.68,138.13,138.09,15.37335166]
[1750532760313,0.68,138.12,138.08,35.53120052]
[1750532760514,16.05335166,138.12,138.08,35.53120052]
[1750532760747,16.05335166,138.12,138.09,7.24165399]
[1750532761048,15.37335166,138.12,138.09,7.24165399]
[1750532761549,26.0,138.14,138.09,7.24165399]
[1750532761720,26.0,138.13,138.09,22.61500565]
[1750532762056,15.37335166,138.15,138.11,15.37335166]
[1750532762338,16.05335166,138.14,138.1,15.37335166]
[1750532762516,15.37335166,138.14,138.09,25.34578897]
[1750532762718,16.05335166,138.13,138.09,40.71914063]
[1750532763337,15.37335166,138.13,138.09,40.71914063]
[1750532763537,15.37335166,138.13,138.1,18.64964886]
[1750532763713,15.37335166,138.14,138.1,34.02300052]
[1750532763914,174.68,138.16,138.1,34.02300052]
[1750532764113,26.68,138.16,138.13,15.37335166]
[1750532764337,26.68,138.16,138.13,6.52]
[1750532764540,42.05335166,138.16,138.13,6.52]